bitfinex/quotes_SOLUSD_20250917
["timestamp","ask_amount","ask_price","bid_price","bid_amount"]
[1758070461761,0.1,236.29,236.28,64.30847399]
[1758070464169,0.1,236.29,236.28,64.59279713]
[1758070466765,1e-08,236.31,236.3,39.87991715]
[1758070466953,0.06,236.36,236.33,39.59559401]
[1758070467157,0.06,236.36,236.33,76.84511921]
[1758070467358,0.06,236.36,236.34,13.59559401]
[1758070467660,0.06,236.36,236.35,49.51778108]
[1758070467843,0.06,236.36,236.35,50.17778108]
[1758070468249,0.06,236.36,236.35,14.96301848]
[1758070468454,0.06,236.36,236.35,53.06136993]
[1758070469056,0.06,236.36,236.35,54.75524446]
[1758070469267,0.06,236.36,236.35,55.41524446]
[1758070469947,0.06,236.36,236.35,53.38048186]
[1758070470353,0.06,236.36,236.35,53.664805]
[1758070470766,1e-08,236.36,236.35,53.664805]
[1758070472966,1e-08,236.36,236.35,20.464805]
[1758070473160,1e-08,236.36,236.35,53.624805]
[1758070473789,1e-08,236.36,236.35,53.604805]
[1758070476376,1e-08,236.36,236.35,53.584805]
[1758070477975,1e-08,236.42,236.41,26.0]
[1758070478274,0.16,236.49,236.43,0.28432314]
[1758070478475,0.16,236.49,236.43,49.15467975]
[1758070478688,0.16,236.49,236.43,50.23763791]
[1758070478890,0.16,236.49,236.43,54.4672196]
[1758070479273,1e-08,236.44,236.43,56.16037713]
[1758070480278,1e-08,236.44,236.43,59.46880036]
[1758070481664,1e-08,236.44,236.43,72.28832478]
[1758070482378,0.16,236.49,236.47,39.87991715]
[1758070482558,0.16,236.49,236.47,75.13467975]
[1758070482760,0.16,236.49,236.47,75.79467975]
[1758070483463,0.16,236.49,236.47,77.48755064]
[1758070483671,0.16,236.49,236.47,81.69641688]
[1758070484969,0.16,236.49,236.47,48.49641688]
[1758070485168,0.16,236.49,236.47,81.67641688]
[1758070485466,1e-08,236.52,236.5,13.59559401]
[1758070485663,1e-08,236.52,236.49,20.28432314]
[1758070485664,1e-08,236.52,236.51,48.81035661]
[1758070486061,1e-08,236.52,236.51,51.16286936]
[1758070486379,1e-08,236.52,236.51,48.46810676]
[1758070486958,1e-08,236.52,236.51,50.50286936]
[1758070487165,1e-08,236.52,236.51,48.46810676]
[1758070487573,1e-08,236.52,236.51,46.79559401]
[1758070487774,0.06000001,236.52,236.51,46.77559401]
[1758070489189,1e-08,236.52,236.51,46.77559401]
[1758070493293,1e-08,236.52,236.51,13.59559401]
[1758070493485,1e-08,236.52,236.51,46.71559401]
[1758070495998,1e-08,236.52,236.51,13.59559401]
[1758070496186,1e-08,236.52,236.51,46.69559401]
[1758070497184,1e-08,236.52,236.51,13.59559401]
[1758070497492,1e-08,236.52,236.5,30.22697499]
[1758070497493,0.06000001,236.52,236.5,4.22697499]
[1758070497696,0.06,236.51,236.48,8.88133024]
[1758070497995,0.06,236.5,236.49,33.1]
[1758070498500,5.58679314,236.5,236.49,33.1]
[1758070499090,5.58679314,236.5,236.49,33.14]
[1758070499603,5.58679314,236.5,236.49,33.12]
[1758070500177,5.58679314,236.5,236.48,8.88133024]
[1758070500389,1.3583788,236.49,236.48,42.00133024]
[1758070501781,1.3583788,236.49,236.48,8.88133024]
[1758070501978,1.64270194,236.49,236.48,8.88133024]
[1758070502177,26.0,236.45,236.35,0.75]
[1758070502381,1.2983788,236.39,236.35,0.03]
[1758070502590,26.06,236.44,236.36,33.12]
[1758070502794,1.2983788,236.39,236.36,33.12]
[1758070503885,0.06,236.42,236.35,0.03]
[1758070503886,1.3583788,236.38,236.35,0.03]
[1758070504104,1.2983788,236.36,236.35,0.03]
[1758070504408,1.2983788,236.36,236.35,33.15]
[1758070504780,1.3583788,236.36,236.35,33.15]
[1758070505401,1.2983788,236.36,236.35,33.15]
[1758070505605,1.75452034,236.41,236.35,33.15]
[1758070505794,1.2983788,236.38,236.35,33.15]
[1758070506294,1.2983788,236.37,236.35,33.15]
[1758070506495,1.2983788,236.36,236.35,0.03]
[1758070506805,1.2983788,236.36,236.35,33.15]
[1758070507105,1.2983788,236.4,236.35,38.10095272]
[1758070507697,26.0,236.42,236.36,0.72]
[1758070508004,1.2983788,236.41,236.36,4.95077946]
[1758070508187,12.70836422,236.43,236.37,0.72]
[1758070508377,1.2983788,236.41,236.38,33.12]
[1758070508994,1.2983788,236.4,236.38,33.12]
[1758070509785,1.3583788,236.39,236.38,33.12]
[1758070510001,4.23047635,236.38,236.37,33.1]
[1758070510208,5.58885515,236.38,236.37,33.1]
[1758070510586,5.58885515,236.38,236.35,0.03]
[1758070510786,1.2983788,236.36,236.35,33.13]
[1758070510983,1.3583788,236.36,236.35,33.13]
[1758070511408,1.2983788,236.36,236.35,33.13]
[1758070520110,1.2983788,236.38,236.35,33.79]
[1758070520311,1.2983788,236.38,236.35,33.07]
[1758070520816,1.2983788,236.37,236.35,33.07]
[1758070521009,30.23034267,236.39,236.35,0.03]
[1758070521010,1.2983788,236.36,236.35,0.03]
[1758070522218,1.3583788,236.36,236.35,0.03]
[1758070522599,1.2983788,236.36,236.35,0.03]
[1758070522810,1.2983788,236.36,236.35,0.75]
[1758070523207,1.2983788,236.36,236.35,0.03]
[1758070523429,27.3583788,236.36,236.35,0.03]
[1758070523603,27.2983788,236.36,236.35,0.03]
[1758070524095,26.0,236.36,236.35,0.75]
[1758070524297,3.50806171,236.4,236.35,0.75]
[1758070525304,3.50806171,236.4,236.35,4.9810026]
[1758070525622,3.50806171,236.4,236.36,0.69]
[1758070525918,3.50806171,236.4,236.37,33.04]
[1758070526107,3.50806171,236.4,236.38,0.69]
[1758070527027,1.2983788,236.39,236.38,0.69]
[1758070527237,3.50806171,236.4,236.38,0.69]
[1758070528414,3.50806171,236.4,236.39,0.69]
[1758070528997,1.2983788,236.41,236.39,0.69]
[1758070529197,1.2983788,236.41,236.4,0.69]
[1758070529422,1.2983788,236.41,236.37,33.04]
[1758070529615,1.2983788,236.41,236.38,0.69]
[1758070529922,1.2983788,236.41,236.39,0.69]
[1758070530518,1.2983788,236.44,236.4,0.69]
[1758070530825,1.2983788,236.44,236.38,4.23043071]
[1758070531031,1.2983788,236.44,236.39,0.69]
[1758070532225,1.2983788,236.43,236.39,0.69]
[1758070533020,1.2983788,236.43,236.39,4.92028036]
[1758070533319,1.2983788,236.43,236.4,0.69]
[1758070533510,1.2983788,236.43,236.41,0.69]
[1758070533714,1.2983788,236.43,236.42,33.0]
[1758070537224,1.2983788,236.43,236.42,33.69]
[1758070540305,7.05602227,236.44,236.42,33.69]
[1758070540513,1.2983788,236.43,236.42,33.0]
[1758070541121,1.2983788,236.43,236.42,33.69]
[1758070541325,4.12496204,236.43,236.42,33.69]
[1758070541717,8.35454373,236.43,236.42,33.0]
[1758070542425,4.12496204,236.43,236.42,33.69]
[1758070542623,2.82658324,236.43,236.42,33.69]
[1758070542831,4.12496204,236.43,236.42,33.69]
[1758070546031,4.14041089,236.43,236.42,33.69]
[1758070547526,2.84203209,236.43,236.42,33.69]
[1758070547734,0.06,236.48,236.42,39.21813939]
[1758070547937,0.06,236.48,236.43,14.28559401]
[1758070548110,0.06,236.48,236.45,1.2983788]
[1758070548313,0.06,236.48,236.46,32.98]
[1758070548510,0.06,236.48,236.46,33.67]
[1758070548709,0.06,236.48,236.47,0.69]
[1758070549314,0.06,236.48,236.47,4.91886624]
[1758070550342,0.06,236.48,236.47,0.69]
[1758070551135,0.06,236.48,236.47,4.91886624]
[1758070552136,0.06,236.48,236.47,18.51446025]
[1758070552512,0.06,236.48,236.47,4.91886624]
[1758070552712,0.06,236.48,236.47,33.67]
[1758070555319,0.06,236.48,236.47,35.6996156]
[1758070555533,0.06,236.48,236.47,49.29520961]
[1758070562237,0.06,236.48,236.47,49.57953275]
[1758070562544,0.06,236.48,236.47,16.59953275]
[1758070562849,0.06,236.48,236.47,49.55953275]
[1758070565945,0.06,236.48,236.47,16.59953275]
[1758070566138,0.06,236.48,236.47,49.55953275]
[1758070571754,0.06,236.48,236.47,53.78839899]
[1758070574464,0.06,236.51,236.5,26.0]
[1758070574665,0.06,236.51,236.5,60.9896156]
[1758070574839,0.06,236.51,236.5,65.8879454]
[1758070579841,0.06,236.51,236.5,79.48353941]
[1758070580049,1e-08,236.51,236.5,79.76786255]
[1758070580642,1e-08,236.51,236.5,79.74786255]
[1758070580946,0.1,236.59,236.55,13.59559401]
[1758070581262,0.1,236.59,236.56,32.94]
[1758070581461,0.1,236.59,236.57,13.59559401]
[1758070581651,0.1,236.59,236.58,46.53559401]
[1758070581956,0.1,236.59,236.58,17.822494]
[1758070582163,0.1,236.59,236.58,50.762494]
[1758070582878,0.8,236.59,236.58,50.762494]
[1758070583854,0.1,236.59,236.58,50.762494]
[1758070587254,0.1,236.59,236.58,51.472494]
[1758070587768,0.1,236.59,236.58,50.762494]
[1758070593290,0.1,236.59,236.58,51.472494]
[1758070593591,0.1,236.59,236.58,50.762494]
[1758070594854,0.1,236.59,236.58,51.472494]
[1758070595574,0.1,236.59,236.58,51.452494]
[1758070596075,0.1,236.59,236.58,50.742494]
[1758070598480,0.1,236.59,236.58,51.452494]
[1758070600663,0.1,236.59,236.58,53.4821096]
[1758070602779,0.1,236.59,236.58,52.7721096]
[1758070602972,0.1,236.59,236.58,50.742494]
[1758070603370,0.1,236.59,236.58,51.452494]
[1758070607493,0.16,236.59,236.58,51.452494]
[1758070609195,0.88,236.59,236.58,17.822494]
[1758070609487,0.88,236.59,236.58,37.14689999]
[1758070609788,0.16,236.59,236.58,37.14689999]
[1758070611090,0.16,236.59,236.58,37.85689999]
[1758070611390,0.16,236.59,236.58,37.14689999]
[1758070615794,0.86,236.59,236.58,37.12689999]
[1758070616174,0.86,236.59,236.56,4.22707908]
[1758070616373,0.86,236.59,236.57,32.9]
[1758070616796,0.7,236.58,236.56,4.22707908]
[1758070616992,0.16,236.59,236.57,32.9]
[1758070617598,0.7,236.58,236.57,32.9]
[1758070618794,0.7,236.58,236.54,30.22745165]
[1758070618994,0.16,236.59,236.55,32.9]
[1758070618995,0.7,236.57,236.55,32.9]
[1758070619780,0.7,236.57,236.55,37.12742611]
[1758070619987,0.86,236.59,236.55,37.12742611]
[1758070620186,0.16,236.59,236.55,37.12742611]
[1758070620506,0.7,236.58,236.55,37.12742611]
[1758070621279,0.16,236.59,236.55,37.12742611]
[1758070621479,0.86,236.59,236.55,37.12742611]
[1758070621786,0.16,236.59,236.55,37.12742611]
[1758070622001,0.86,236.59,236.55,37.12742611]
[1758070623295,1.29766503,236.57,236.53,0.03]
[1758070623602,1.29766503,236.55,236.54,32.9]
[1758070623808,1.99766503,236.55,236.54,32.9]
[1758070624196,1.29766503,236.55,236.54,32.9]
[1758070624888,0.16,236.59,236.54,37.83761477]
[1758070625086,1.45766503,236.59,236.54,37.12761477]
[1758070625284,0.16,236.59,236.55,0.71]
[1758070625515,0.16,236.59,236.56,33.61]
[1758070625887,0.16,236.59,236.57,0.71]
[1758070626211,0.16,236.59,236.58,32.9]
[1758070626883,2.15766503,236.59,236.53,0.03]
[1758070627083,1.29766503,236.56,236.54,32.9]
[1758070627894,1.99766503,236.56,236.53,0.03]
[1758070628093,4.38684444,236.59,236.53,0.03]
[1758070628094,0.16,236.59,236.54,33.61]
[1758070628298,1.45766503,236.59,236.55,0.71]
[1758070628497,1.45766503,236.59,236.56,32.9]
[1758070628892,2.15766503,236.59,236.56,32.9]
[1758070629392,5.004286,236.59,236.56,32.9]
[1758070630530,0.16,236.59,236.57,0.71]
[1758070630902,0.16,236.59,236.56,32.9]
[1758070631102,0.16,236.59,236.56,37.83724441]
[1758070633310,0.16,236.59,236.56,37.12724441]
[1758070633513,0.16,236.59,236.57,0.71]
[1758070633692,0.16,236.59,236.57,4.93706612]
[1758070633897,0.16,236.59,236.58,0.71]
[1758070634789,0.16,236.59,236.57,4.22706612]
[1758070634991,0.16,236.59,236.58,0.71]
[1758070635812,0.16,236.59,236.58,4.93689999]
[1758070637495,0.16,236.59,236.58,4.22689999]
[1758070637695,0.16,236.59,236.58,32.88]
[1758070641910,0.16,236.59,236.55,0.71]
[1758070642111,1.29766503,236.56,236.53,0.03]
[1758070642311,1.29766503,236.56,236.54,32.88]
[1758070642909,1.29766503,236.56,236.53,0.03]
[1758070643119,1.29766503,236.56,236.55,32.88]
[1758070643323,1.29766503,236.56,236.55,33.59]
[1758070643705,1.29766503,236.56,236.55,32.88]
[1758070647119,1.29766503,236.58,236.55,33.6]
[1758070647908,1.29766503,236.58,236.55,32.88]
[1758070648718,1.29766503,236.58,236.55,33.6]
[1758070648911,1.29766503,236.58,236.56,0.72]
[1758070649117,1.45766503,236.59,236.57,0.72]
[1758070649310,1.45766503,236.59,236.58,32.88]
[1758070649711,0.16,236.59,236.58,32.88]
[1758070653135,1.45766503,236.59,236.54,14.31559401]
[1758070653336,1.45766503,236.59,236.55,33.58]
[1758070653536,1.45766503,236.59,236.56,0.72]
[1758070655116,1.45766503,236.59,236.56,4.94720101]
[1758070655427,0.16,236.59,236.56,4.94720101]
[1758070655627,1.29766503,236.58,236.57,32.86]
[1758070655829,0.16,236.59,236.57,32.86]
[1758070656047,1.29766503,236.58,236.57,32.86]
[1758070657019,1.29766503,236.58,236.53,0.03]
[1758070657218,1.29766503,236.56,236.54,33.58]
[1758070657624,0.68,236.58,236.53,0.03]
[1758070657625,1.97766503,236.55,236.53,0.03]
[1758070657823,1.29766503,236.54,236.53,0.03]
[1758070658143,1.97766503,236.54,236.53,32.89]
[1758070658535,1.29766503,236.54,236.53,32.89]
[1758070662246,1.97766503,236.54,236.53,0.03]
[1758070662418,1.97766503,236.54,236.53,32.89]
[1758070662926,1.29766503,236.54,236.53,32.89]
[1758070663131,6.2052798,236.54,236.53,32.89]
[1758070664635,6.2052798,236.54,236.53,0.03]
[1758070664939,9.05286699,236.54,236.53,0.03]
[1758070665445,1.97766503,236.54,236.53,0.03]
[1758070665644,8.37286699,236.54,236.53,0.03]
[1758070666924,9.05286699,236.54,236.53,0.03]
[1758070667129,9.33719013,236.54,236.53,0.03]
[1758070667341,11.0309212,236.54,236.53,0.03]
[1758070668327,8.18333401,236.54,236.53,0.03]
[1758070668820,11.0309212,236.54,236.53,0.03]
[1758070669049,8.18333401,236.54,236.53,0.03]
[1758070671750,8.915705,236.54,236.53,0.03]
[1758070672749,6.20566898,236.54,236.53,0.03]
[1758070672958,26.28432314,236.54,236.53,0.03]
[1758070673242,28.31435916,236.54,236.53,0.03]
[1758070673746,32.54197393,236.54,236.53,0.03]
[1758070674250,32.25765079,236.54,236.53,0.03]
[1758070676848,28.03003602,236.54,236.53,0.03]
[1758070677031,2.03003602,236.54,236.53,0.7]
[1758070677426,2.03003602,236.54,236.53,0.03]
[1758070679045,2.09003602,236.54,236.53,0.03]
[1758070679758,6.31765079,236.54,236.53,0.03]
[1758070679934,7.29197393,236.54,236.53,0.03]
[1758070681935,10.13300183,236.54,236.53,0.03]
[1758070682150,9.79669688,236.54,236.53,0.03]
[1758070682453,11.8267329,236.54,236.53,0.03]
[1758070683439,8.985705,236.54,236.53,0.03]
[1758070684947,11.8267329,236.54,236.53,0.03]
[1758070685146,8.985705,236.54,236.53,0.03]
[1758070685347,11.8267329,236.54,236.53,0.03]
[1758070685751,11.1367329,236.54,236.53,0.03]
[1758070685956,8.295705,236.54,236.53,0.03]
[1758070687556,8.985705,236.54,236.53,0.03]
[1758070687951,8.295705,236.54,236.53,0.03]
[1758070688144,10.50419269,236.54,236.53,0.03]
[1758070688534,2.55281083,236.54,236.53,0.7]
[1758070688735,4.29852371,236.54,236.53,0.7]
[1758070688931,30.29852371,236.54,236.53,0.7]
[1758070689152,7.13955161,236.54,236.53,0.7]
[1758070689340,2.09003602,236.54,236.53,0.7]
[1758070689534,28.09003602,236.54,236.53,0.7]
[1758070689944,6.31765079,236.54,236.53,0.7]
[1758070690151,32.31765079,236.54,236.53,0.7]
[1758070692964,35.15951725,236.54,236.53,0.7]
[1758070693154,32.31765079,236.54,236.53,0.7]
[1758070693354,35.15976123,236.54,236.53,0.7]
[1758070693755,10.13408437,236.54,236.53,0.03]
[1758070694362,0.06,236.54,236.53,0.7]
[1758070695460,0.06,236.54,236.53,6.95782953]
[1758070698169,0.06,236.54,236.53,4.92779351]
[1758070702442,0.06,236.54,236.53,0.03]
[1758070702443,2.09003602,236.54,236.53,0.03]
[1758070702648,7.00765079,236.54,236.53,0.03]
[1758070703159,9.84989477,236.54,236.53,0.03]
[1758070703551,10.13421791,236.54,236.53,0.03]
[1758070706145,11.82794899,236.54,236.53,0.03]
[1758070707766,10.13421791,236.54,236.53,0.03]
[1758070708167,9.44421791,236.54,236.53,0.03]
[1758070708553,10.12421791,236.54,236.53,0.03]
[1758070709269,9.44421791,236.54,236.53,0.03]
[1758070709569,10.12421791,236.54,236.53,0.03]
[1758070712861,11.81809244,236.54,236.53,0.03]
[1758070713871,26.28432314,236.51,236.5,0.03]
[1758070714175,32.54251018,236.51,236.5,0.03]
[1758070714378,33.22251018,236.51,236.5,0.03]
[1758070714570,37.76245161,236.51,236.5,0.03]
[1758070714772,37.08245161,236.51,236.5,0.03]
[1758070715164,37.76245161,236.51,236.5,0.03]
[1758070716872,51.35804562,236.51,236.5,0.03]
[1758070719676,51.35804562,236.51,236.5,0.03]
[1758070719981,84.15804562,236.51,236.5,0.03]
[1758070723965,83.47804562,236.51,236.5,0.03]
[1758070724764,83.47804562,236.51,236.5,0.74]
[1758070725068,83.47804562,236.51,236.5,0.03]
[1758070726086,85.68699087,236.51,236.5,0.03]
[1758070727190,86.36699087,236.51,236.5,0.03]
[1758070728070,85.68699087,236.51,236.5,0.03]
[1758070728269,86.36699087,236.51,236.5,0.03]
[1758070728486,85.68699087,236.51,236.5,0.03]
[1758070730577,13.87991715,236.5,236.48,0.03]
[1758070730768,5.16021085,236.49,236.48,0.74]
[1758070731181,6.8544441,236.49,236.48,0.74]
[1758070731686,4.00859241,236.49,236.48,0.74]
[1758070731870,7.50693517,236.49,236.48,0.74]
[1758070741893,28.99410343,236.49,236.48,0.74]
[1758070742193,27.29987018,236.49,236.48,0.74]
[1758070744794,1.29987018,236.49,236.48,0.74]
[1758070745192,5.52837878,236.49,236.48,0.74]
[1758070745380,13.85633333,236.49,236.48,0.03]
[1758070745789,15.55035133,236.49,236.48,0.03]
[1758070746295,0.28432314,236.48,236.47,0.03]
[1758070746503,26.0,236.46,236.43,0.69]
[1758070746703,1.29987018,236.44,236.43,0.69]
[1758070750786,1.29987018,236.45,236.43,0.69]
[1758070751187,1.29987018,236.45,236.43,4.91957557]
[1758070751401,1.29987018,236.46,236.44,0.66]
[1758070751788,1.29987018,236.45,236.44,0.66]
[1758070752401,131.7,236.47,236.44,0.66]
[1758070752602,1.29987018,236.45,236.44,0.66]
[1758070756215,131.7,236.47,236.44,4.8894028]
[1758070756702,131.7,236.47,236.45,0.66]
[1758070756890,1.29987018,236.46,236.43,0.03]
[1758070757097,1.29987018,236.44,236.43,0.03]
[1758070757510,4.15013468,236.44,236.43,0.03]
[1758070758991,8.37953748,236.44,236.43,0.03]
[1758070760799,9.38386062,236.44,236.43,0.03]
[1758070762093,5.15445782,236.44,236.43,0.03]
[1758070762318,28.8502645,236.44,236.43,0.69]
[1758070762521,30.15013468,236.44,236.43,0.03]
[1758070763313,30.15013468,236.44,236.43,0.69]
[1758070763518,30.15013468,236.44,236.43,0.03]
[1758070764099,34.37953748,236.44,236.43,0.03]
[1758070765805,35.33386062,236.44,236.43,0.03]
[1758070766518,37.0282374,236.44,236.43,0.03]
[1758070775112,36.3582374,236.44,236.43,0.03]
[1758070780738,35.05836722,236.44,236.43,0.03]
[1758070780938,36.3582374,236.44,236.43,0.03]
[1758070781138,36.3582374,236.44,236.43,0.71]
[1758070781432,36.3582374,236.44,236.43,0.03]
[1758070787143,36.3582374,236.44,236.43,0.71]
[1758070787338,35.05836722,236.44,236.43,0.71]
[1758070787541,38.56747346,236.44,236.43,0.71]
[1758070788931,38.56747346,236.44,236.43,0.03]
[1758070789442,38.56747346,236.44,236.43,0.71]
[1758070789925,38.56747346,236.44,236.43,0.03]
[1758070790127,28.8502645,236.44,236.43,0.71]
[1758070790546,2.8502645,236.44,236.43,0.71]
[1758070790737,2.8502645,236.45,236.43,0.71]
[1758070790940,2.8502645,236.46,236.43,0.71]
[1758070791150,2.8502645,236.45,236.43,0.71]
[1758070791336,2.8502645,236.46,236.43,0.71]
[1758070793254,2.8502645,236.45,236.43,0.71]
[1758070793448,2.8502645,236.46,236.43,0.71]
[1758070793750,2.8502645,236.45,236.43,0.71]
[1758070793940,2.8502645,236.46,236.43,0.71]
[1758070794135,2.8502645,236.45,236.43,0.71]
[1758070795739,2.8502645,236.46,236.43,0.71]
[1758070795938,2.8502645,236.45,236.43,0.71]
[1758070796138,2.8502645,236.46,236.43,0.71]
[1758070796339,2.8502645,236.45,236.43,0.71]
[1758070796533,2.8502645,236.46,236.43,0.71]
[1758070796738,2.8502645,236.45,236.43,0.71]
[1758070796933,2.8502645,236.46,236.43,0.71]
[1758070797141,2.8502645,236.45,236.43,0.71]
[1758070797359,2.8502645,236.44,236.43,0.71]
[1758070797537,2.8502645,236.46,236.43,0.71]
[1758070797736,2.8502645,236.45,236.43,0.71]
[1758070797948,2.8502645,236.44,236.43,0.71]
[1758070798237,2.8502645,236.46,236.43,0.71]
[1758070798439,2.8502645,236.45,236.43,0.71]
[1758070798648,2.8502645,236.44,236.43,0.71]
[1758070798859,2.8502645,236.46,236.43,0.71]
[1758070799034,2.8502645,236.45,236.43,0.71]
[1758070799237,2.8502645,236.44,236.43,4.93958169]
[1758070799435,2.8502645,236.46,236.43,4.93958169]
[1758070799637,2.8502645,236.45,236.44,0.66]
[1758070799961,2.8502645,236.46,236.44,0.66]
[1758070800156,2.8502645,236.45,236.44,0.66]
[1758070800331,2.8502645,236.46,236.44,0.66]
[1758070800541,0.06,236.47,236.45,2.03066046]
[1758070800754,0.06,236.47,236.46,2.03066046]
[1758070801242,0.06,236.47,236.46,2.69066046]
[1758070801753,0.06,236.47,236.46,0.66]
[1758070802455,0.06,236.47,236.46,4.88904508]
[1758070802672,0.06,236.47,236.46,0.66]
[1758070804346,0.06,236.47,236.43,0.69]
[1758070804551,2.03066046,236.44,236.43,0.03]
[1758070804759,2.74066046,236.44,236.43,0.03]
[1758070805457,29.0249836,236.44,236.43,0.03]
[1758070805663,31.87074803,236.44,236.43,0.03]
[1758070806565,36.10015083,236.44,236.43,0.03]
[1758070806744,33.35949037,236.44,236.43,0.03]
[1758070806944,35.05386715,236.44,236.43,0.03]
[1758070807371,33.35949037,236.44,236.43,0.03]
[1758070809682,35.39015083,236.44,236.43,0.03]
[1758070810163,36.10015083,236.44,236.43,0.03]
[1758070811268,35.39015083,236.44,236.43,0.03]
[1758070811475,29.13008757,236.44,236.43,0.69]
[1758070811651,26.28432314,236.44,236.43,0.69]
[1758070811851,0.28432314,236.44,236.43,0.69]
[1758070812356,4.51372594,236.44,236.43,0.03]
[1758070813863,6.20803095,236.44,236.43,0.03]
[1758070815700,6.20803095,236.44,236.43,0.69]
[1758070815856,6.20803095,236.44,236.43,0.03]
[1758070816194,6.20803095,236.44,236.43,0.69]
[1758070817383,6.20803095,236.44,236.43,0.03]
[1758070821394,27.69430501,236.44,236.43,0.69]
[1758070821562,0.28432314,236.46,236.43,0.69]
[1758070821768,26.28432314,236.46,236.44,0.66]
[1758070821997,2.03066046,236.45,236.44,0.66]
[1758070822699,0.06,236.47,236.44,0.66]
[1758070825724,0.06,236.47,236.45,2.03066046]
[1758070826075,0.06,236.47,236.46,0.67]
[1758070826306,0.06,236.47,236.44,2.03066046]
[1758070826601,0.06,236.47,236.45,0.67]
[1758070827301,0.06,236.47,236.46,0.67]
[1758070828611,4.28886624,236.47,236.46,0.67]
[1758070828780,4.28886624,236.47,236.44,0.67]
[1758070829106,16.99400123,236.47,236.45,0.67]
[1758070829282,16.99400123,236.47,236.46,0.67]
[1758070832202,16.99400123,236.47,236.44,0.67]
[1758070832416,16.99400123,236.47,236.45,0.67]
[1758070833679,16.99400123,236.47,236.46,0.67]
[1758070834998,16.99400123,236.47,236.44,0.67]
[1758070835199,16.99400123,236.47,236.45,0.67]
[1758070835385,4.28886624,236.47,236.46,0.67]
[1758070836506,6.3195267,236.47,236.46,0.67]
[1758070837308,6.3195267,236.47,236.43,0.03]
[1758070837494,6.3195267,236.47,236.45,0.67]
[1758070841025,11.33104822,236.5,236.45,0.67]
[1758070841026,0.06,236.5,236.46,2.03066046]
[1758070841220,0.06,236.5,236.49,2.03066046]
[1758070841515,0.06,236.5,236.49,34.73066046]
[1758070841697,0.06,236.5,236.49,35.40066046]
[1758070842316,0.06,236.5,236.49,48.99625447]
[1758070842712,0.06,236.5,236.49,53.22476307]
[1758070843220,0.06,236.52,236.51,41.62625447]
[1758070843717,0.06,236.52,236.51,42.29625447]
[1758070843898,0.06,236.52,236.51,43.98919701]
[1758070844100,0.06,236.52,236.51,48.21734803]
[1758070844614,0.06,236.52,236.51,61.11504287]
[1758070847218,0.06,236.56,236.52,13.59559401]
[1758070847402,0.06,236.56,236.52,16.29625447]
[1758070848018,0.06,236.56,236.52,17.98912537]
[1758070851411,0.06,236.56,236.53,4.22779351]
[1758070851607,0.06,236.56,236.53,65.60845397]
[1758070852011,0.06,236.56,236.53,67.30110996]
[1758070853803,0.06,236.56,236.53,66.56780179]
[1758070859034,0.06,236.56,236.53,33.88780179]
[1758070859231,0.06,236.56,236.53,66.54780179]
[1758070862724,0.06,236.56,236.53,33.88780179]
[1758070862930,0.06,236.56,236.53,66.54780179]
[1758070863832,0.06,236.56,236.53,40.54780179]
[1758070864619,1e-08,236.54,236.53,54.1433958]
[1758070864832,0.06,236.56,236.54,13.59559401]
[1758070865144,1e-08,236.56,236.55,47.5529463]